[Event "Titled Tuesday Blitz October 31 Early 2023"]
[White "Shubenkova, Veronika"]
[Black "BardArtem"]
[WhiteFideId "44124040"]
[WhiteElo "2543"]
[BlackElo "2701"]
[Result "0-1"]
[Round "7"]
[TimeControl "180+1"]
[Date "2023.10.31"]
[WhiteClock "0:00:04"]
[BlackClock "0:00:04"]
[Board "56"]

1. e4 {[%clk 0:03:00]}  e5 {[%clk 0:02:59]} 2. Nf3 {[%clk 0:03:01]}  Nc6 {[%clk 0:02:59]} 3. Bb5 {[%clk 0:03:00]}  Nge7 {[%clk 0:02:59]} 4. Bxc6 {[%clk 0:02:59]}  Nxc6 {[%clk 0:02:59]} 5. O-O {[%clk 0:03:00]}  Bc5 {[%clk 0:02:57]} 6. c3 {[%clk 0:02:59]}  d6 {[%clk 0:02:55]} 7. d4 {[%clk 0:02:59]}  Bb6 {[%clk 0:02:53]} 8. d5 {[%clk 0:02:59]}  Ne7 {[%clk 0:02:52]} 9. c4 {[%clk 0:02:59]}  O-O {[%clk 0:02:51]} 10. Nc3 {[%clk 0:02:58]}  f5 {[%clk 0:02:52]} 11. Bg5 {[%clk 0:02:56]}  f4 {[%clk 0:02:38]} 12. Nd2 {[%clk 0:02:52]}  h6 {[%clk 0:02:25]} 13. Bxe7 {[%clk 0:02:52]}  Qxe7 {[%clk 0:02:26]} 14. Kh1 {[%clk 0:02:48]}  Qf7 {[%clk 0:02:17]} 15. f3 {[%clk 0:02:46]}  g5 {[%clk 0:02:15]} 16. b4 {[%clk 0:02:45]}  a5 {[%clk 0:02:09]} 17. a3 {[%clk 0:02:41]}  h5 {[%clk 0:02:07]} 18. Ne2 {[%clk 0:02:30]}  g4 {[%clk 0:02:04]} 19. Qb3 {[%clk 0:02:24]}  Qf6 {[%clk 0:01:43]} 20. Rac1 {[%clk 0:02:04]}  Be3 {[%clk 0:01:38]} 21. Rc2 {[%clk 0:02:03]}  axb4 {[%clk 0:01:35]} 22. axb4 {[%clk 0:02:02]}  g3 {[%clk 0:01:27]} 23. h3 {[%clk 0:01:56]}  Kh8 {[%clk 0:01:21]} 24. Ng1 {[%clk 0:01:55]}  Rg8 {[%clk 0:01:16]} 25. Rd1 {[%clk 0:01:42]}  Qh4 {[%clk 0:01:11]} 26. Nf1 {[%clk 0:01:39]}  Bxg1 {[%clk 0:00:59]} 27. Kxg1 {[%clk 0:01:39]}  Bxh3 {[%clk 0:00:59]} 28. gxh3 {[%clk 0:01:32]}  Qxh3 {[%clk 0:01:00]} 29. Rdd2 {[%clk 0:01:30]}  Ra1 {[%clk 0:00:43]} 30. Qd3 {[%clk 0:01:29]}  h4 {[%clk 0:00:33]} 31. c5 {[%clk 0:01:28]}  Qd7 {[%clk 0:00:21]} 32. Ra2 {[%clk 0:01:01]}  Ra8 {[%clk 0:00:11]} 33. Rxa8+ {[%clk 0:00:51]}  Rxa8 {[%clk 0:00:12]} 34. Qc3 {[%clk 0:00:50]}  h3 {[%clk 0:00:11]} 35. cxd6 {[%clk 0:00:49]}  cxd6 {[%clk 0:00:12]} 36. Rc2 {[%clk 0:00:46]}  Qh7 {[%clk 0:00:05]} 37. b5 {[%clk 0:00:19]}  Rg8 {[%clk 0:00:05]} 38. Qb2 {[%clk 0:00:19]}  Qh5 {[%clk 0:00:03]} 39. Nh2 {[%clk 0:00:03]}  gxh2+ {[%clk 0:00:03]} 40. Kxh2 {[%clk 0:00:04]}  Qxf3 {[%clk 0:00:03]} 41. Rf2 {[%clk 0:00:03]}  Qg3+ {[%clk 0:00:04]} 42. Kh1 {[%clk 0:00:04]}  Qg1# {[%clk 0:00:04]} 0-1


[Site "https://www.chess.com"]

[Event "Titled Tuesday Blitz October 31 Early 2023"]
[White "El_Matador12"]
[Black "Amilal Munkhdalai"]
[BlackFideId "4903250"]
[WhiteElo "2534"]
[BlackElo "2679"]
[Result "0-1"]
[Round "7"]
[TimeControl "180+1"]
[Date "2023.10.31"]
[WhiteClock "0:00:18"]
[BlackClock "0:00:12"]
[Board "57"]

1. d4 {[%clk 0:02:59]}  Nf6 {[%clk 0:03:00]} 2. Bg5 {[%clk 0:02:59]}  d5 {[%clk 0:02:59]} 3. Bxf6 {[%clk 0:02:58]}  gxf6 {[%clk 0:02:59]} 4. c4 {[%clk 0:02:58]}  c6 {[%clk 0:03:00]} 5. cxd5 {[%clk 0:02:54]}  cxd5 {[%clk 0:03:00]} 6. Nc3 {[%clk 0:02:55]}  Nc6 {[%clk 0:03:00]} 7. e3 {[%clk 0:02:55]}  e6 {[%clk 0:02:59]} 8. Bd3 {[%clk 0:02:55]}  f5 {[%clk 0:02:59]} 9. Nge2 {[%clk 0:02:54]}  Bd6 {[%clk 0:02:59]} 10. g3 {[%clk 0:02:33]}  a6 {[%clk 0:02:54]} 11. Rc1 {[%clk 0:02:31]}  Bd7 {[%clk 0:02:54]} 12. a3 {[%clk 0:02:30]}  b5 {[%clk 0:02:54]} 13. b4 {[%clk 0:02:25]}  Qb6 {[%clk 0:02:47]} 14. O-O {[%clk 0:02:09]}  O-O {[%clk 0:02:47]} 15. Nf4 {[%clk 0:01:51]}  Bxf4 {[%clk 0:02:39]} 16. gxf4 {[%clk 0:01:50]}  Kh8 {[%clk 0:02:39]} 17. Kh1 {[%clk 0:01:51]}  Rg8 {[%clk 0:02:38]} 18. Qh5 {[%clk 0:01:50]}  Rg6 {[%clk 0:02:38]} 19. Rg1 {[%clk 0:01:44]}  Rag8 {[%clk 0:02:38]} 20. Rg3 {[%clk 0:01:44]}  Rxg3 {[%clk 0:02:33]} 21. hxg3 {[%clk 0:01:42]}  Rg6 {[%clk 0:02:33]} 22. Kg2 {[%clk 0:01:40]}  Ne7 {[%clk 0:02:32]} 23. Rh1 {[%clk 0:01:36]}  Rg7 {[%clk 0:02:30]} 24. Ne2 {[%clk 0:01:34]}  a5 {[%clk 0:02:27]} 25. Ng1 {[%clk 0:01:31]}  axb4 {[%clk 0:02:24]} 26. axb4 {[%clk 0:01:32]}  Nc6 {[%clk 0:02:23]} 27. Nf3 {[%clk 0:01:32]}  f6 {[%clk 0:02:20]} 28. Qh6 {[%clk 0:01:25]}  Rf7 {[%clk 0:02:18]} 29. g4 {[%clk 0:01:12]}  Nxb4 {[%clk 0:02:16]} 30. Bb1 {[%clk 0:01:11]}  Qd8 {[%clk 0:02:12]} 31. Kf1 {[%clk 0:00:44]}  Qf8 {[%clk 0:02:06]} 32. Qh5 {[%clk 0:00:44]}  Be8 {[%clk 0:01:53]} 33. gxf5 {[%clk 0:00:41]}  Rc7 {[%clk 0:01:54]} 34. Qh4 {[%clk 0:00:33]}  Rc1+ {[%clk 0:01:44]} 35. Ke2 {[%clk 0:00:33]}  Rxh1 {[%clk 0:01:44]} 36. Qxh1 {[%clk 0:00:33]}  exf5 {[%clk 0:01:43]} 37. Bxf5 {[%clk 0:00:32]}  Qe7 {[%clk 0:01:44]} 38. Qh6 {[%clk 0:00:25]}  Qg7 {[%clk 0:01:27]} 39. Qh4 {[%clk 0:00:22]}  Bg6 {[%clk 0:01:26]} 40. Be6 {[%clk 0:00:19]}  Bd3+ {[%clk 0:01:17]} 41. Kd2 {[%clk 0:00:19]}  Be4 {[%clk 0:01:16]} 42. Ne1 {[%clk 0:00:19]}  Qe7 {[%clk 0:01:14]} 43. f5 {[%clk 0:00:19]}  Nc6 {[%clk 0:01:03]} 44. f3 {[%clk 0:00:18]}  Bb1 {[%clk 0:00:43]} 45. Qg3 {[%clk 0:00:18]}  Qf8 {[%clk 0:00:37]} 46. Qc7 {[%clk 0:00:17]}  Nd8 {[%clk 0:00:36]} 47. Ng2 {[%clk 0:00:13]}  Ba2 {[%clk 0:00:29]} 48. Nf4 {[%clk 0:00:13]}  Bc4 {[%clk 0:00:27]} 49. Ke1 {[%clk 0:00:13]}  Qb4+ {[%clk 0:00:16]} 50. Kf2 {[%clk 0:00:13]}  Qd2+ {[%clk 0:00:17]} 51. Kg3 {[%clk 0:00:14]}  Qe1+ {[%clk 0:00:17]} 52. Kg4 {[%clk 0:00:14]}  Qg1+ {[%clk 0:00:17]} 53. Kh4 {[%clk 0:00:14]}  Qf2+ {[%clk 0:00:17]} 54. Kh5 {[%clk 0:00:14]}  Qxf3+ {[%clk 0:00:17]} 55. Kh4 {[%clk 0:00:15]}  Qf2+ {[%clk 0:00:17]} 56. Kh5 {[%clk 0:00:15]}  Be2+ {[%clk 0:00:17]} 57. Nxe2 {[%clk 0:00:15]}  Qxe2+ {[%clk 0:00:18]} 58. Kh4 {[%clk 0:00:15]}  Qf2+ {[%clk 0:00:18]} 59. Kg4 {[%clk 0:00:15]}  Qg2+ {[%clk 0:00:17]} 60. Kh4 {[%clk 0:00:15]}  Nxe6 {[%clk 0:00:15]} 61. Qc8+ {[%clk 0:00:14]}  Kg7 {[%clk 0:00:15]} 62. Qxe6 {[%clk 0:00:14]}  Qe4+ {[%clk 0:00:12]} 63. Kh3 {[%clk 0:00:15]}  Qxe6 {[%clk 0:00:12]} 64. fxe6 {[%clk 0:00:16]}  b4 {[%clk 0:00:13]} 65. e4 {[%clk 0:00:16]}  Kf8 {[%clk 0:00:11]} 66. exd5 {[%clk 0:00:16]}  Ke7 {[%clk 0:00:11]} 67. Kg4 {[%clk 0:00:17]}  b3 {[%clk 0:00:11]} 68. Kf5 {[%clk 0:00:18]}  b2 {[%clk 0:00:11]} 69. d6+ {[%clk 0:00:19]}  Kxd6 {[%clk 0:00:11]} 70. Kxf6 {[%clk 0:00:20]}  b1=Q {[%clk 0:00:12]} 71. e7 {[%clk 0:00:20]}  Qf1+ {[%clk 0:00:12]} 72. Kg7 {[%clk 0:00:21]}  Kxe7 {[%clk 0:00:13]} 73. Kxh7 {[%clk 0:00:18]}  Qg1 {[%clk 0:00:12]} 0-1


[Site "https://www.chess.com"]

[Event "Titled Tuesday Blitz October 31 Early 2023"]
[White "Rendle, Thomas E"]
[Black "Goltseva, Ekaterina"]
[WhiteFideId "408760"]
[BlackFideId "24173770"]
[WhiteElo "2679"]
[BlackElo "2538"]
[Result "0-1"]
[Round "7"]
[TimeControl "180+1"]
[Date "2023.10.31"]
[WhiteClock "0:00:25"]
[BlackClock "0:00:05"]
[Board "58"]

1. e4 {[%clk 0:02:55]}  e5 {[%clk 0:02:57]} 2. Nf3 {[%clk 0:02:50]}  Nc6 {[%clk 0:02:57]} 3. Bb5 {[%clk 0:02:45]}  a6 {[%clk 0:02:55]} 4. Ba4 {[%clk 0:02:44]}  Nf6 {[%clk 0:02:55]} 5. O-O {[%clk 0:02:44]}  Be7 {[%clk 0:02:54]} 6. d3 {[%clk 0:02:42]}  b5 {[%clk 0:02:50]} 7. Bb3 {[%clk 0:02:41]}  d6 {[%clk 0:02:51]} 8. a4 {[%clk 0:02:41]}  b4 {[%clk 0:02:40]} 9. a5 {[%clk 0:02:37]}  O-O {[%clk 0:02:29]} 10. Nbd2 {[%clk 0:02:36]}  Rb8 {[%clk 0:02:13]} 11. c3 {[%clk 0:02:33]}  bxc3 {[%clk 0:02:08]} 12. bxc3 {[%clk 0:02:34]}  Be6 {[%clk 0:02:08]} 13. Bc2 {[%clk 0:02:31]}  Rb5 {[%clk 0:01:58]} 14. Ba4 {[%clk 0:02:23]}  Rxa5 {[%clk 0:01:55]} 15. Ng5 {[%clk 0:02:18]}  Bg4 {[%clk 0:01:47]} 16. f3 {[%clk 0:02:09]}  Bd7 {[%clk 0:01:46]} 17. Nb3 {[%clk 0:02:01]}  Rxa4 {[%clk 0:01:44]} 18. Rxa4 {[%clk 0:02:02]}  Nb8 {[%clk 0:01:20]} 19. Ra1 {[%clk 0:01:55]}  Nh5 {[%clk 0:01:19]} 20. Nh3 {[%clk 0:01:31]}  Bxh3 {[%clk 0:01:17]} 21. gxh3 {[%clk 0:01:32]}  Bg5 {[%clk 0:01:17]} 22. Ra2 {[%clk 0:01:26]}  Bxc1 {[%clk 0:01:12]} 23. Nxc1 {[%clk 0:01:27]}  Nf4 {[%clk 0:01:12]} 24. Kh1 {[%clk 0:01:23]}  Qh4 {[%clk 0:01:04]} 25. Ne2 {[%clk 0:01:14]}  Nxh3 {[%clk 0:01:02]} 26. Qe1 {[%clk 0:01:13]}  Qxe1 {[%clk 0:00:56]} 27. Rxe1 {[%clk 0:01:14]}  Nf2+ {[%clk 0:00:57]} 28. Kg2 {[%clk 0:01:14]}  Nxd3 {[%clk 0:00:57]} 29. Rd1 {[%clk 0:01:10]}  Nc5 {[%clk 0:00:58]} 30. c4 {[%clk 0:01:04]}  Nc6 {[%clk 0:00:57]} 31. Nc3 {[%clk 0:01:04]}  Nd4 {[%clk 0:00:46]} 32. Rb2 {[%clk 0:01:00]}  f5 {[%clk 0:00:43]} 33. Rdb1 {[%clk 0:00:56]}  fxe4 {[%clk 0:00:41]} 34. fxe4 {[%clk 0:00:57]}  Rf6 {[%clk 0:00:38]} 35. Rb8+ {[%clk 0:00:55]}  Kf7 {[%clk 0:00:38]} 36. Rc8 {[%clk 0:00:56]}  Rg6+ {[%clk 0:00:33]} 37. Kf2 {[%clk 0:00:53]}  Nde6 {[%clk 0:00:24]} 38. Ke3 {[%clk 0:00:51]}  Rg2 {[%clk 0:00:20]} 39. Nd5 {[%clk 0:00:48]}  Rxh2 {[%clk 0:00:17]} 40. Nxc7 {[%clk 0:00:42]}  Rh3+ {[%clk 0:00:17]} 41. Kf2 {[%clk 0:00:37]}  Nxe4+ {[%clk 0:00:17]} 42. Kg2 {[%clk 0:00:37]}  Nf4+ {[%clk 0:00:16]} 43. Kg1 {[%clk 0:00:37]}  Ne2+ {[%clk 0:00:11]} 44. Kg2 {[%clk 0:00:37]}  Nf4+ {[%clk 0:00:09]} 45. Kg1 {[%clk 0:00:37]}  Rg3+ {[%clk 0:00:07]} 46. Kf1 {[%clk 0:00:34]}  Nd2+ {[%clk 0:00:06]} 47. Kf2 {[%clk 0:00:34]}  Rg2+ {[%clk 0:00:07]} 48. Ke3 {[%clk 0:00:32]}  Nxb1 {[%clk 0:00:06]} 49. Nxa6 {[%clk 0:00:29]}  Nd2 {[%clk 0:00:05]} 50. Rc7+ {[%clk 0:00:27]}  Kf6 {[%clk 0:00:04]} 51. Nb8 {[%clk 0:00:25]}  Re2# {[%clk 0:00:05]} 0-1


[Site "https://www.chess.com"]

[Event "Titled Tuesday Blitz October 31 Early 2023"]
[White "Leiva, Gianmarco"]
[Black "Tologon tegin, Semetei"]
[WhiteFideId "3804399"]
[BlackFideId "13800574"]
[WhiteElo "2674"]
[BlackElo "2533"]
[Result "1-0"]
[Round "7"]
[TimeControl "180+1"]
[Date "2023.10.31"]
[WhiteClock "0:00:09"]
[BlackClock "0:00:00"]
[Board "59"]

1. e4 {[%clk 0:02:57]}  Nc6 {[%clk 0:02:58]} 2. Nf3 {[%clk 0:02:50]}  Nf6 {[%clk 0:02:56]} 3. e5 {[%clk 0:02:41]}  Nd5 {[%clk 0:02:55]} 4. d4 {[%clk 0:02:40]}  d6 {[%clk 0:02:55]} 5. Bc4 {[%clk 0:02:33]}  Nb6 {[%clk 0:02:54]} 6. Bb5 {[%clk 0:02:33]}  a6 {[%clk 0:02:48]} 7. Bxc6+ {[%clk 0:02:32]}  bxc6 {[%clk 0:02:49]} 8. h3 {[%clk 0:02:32]}  Bf5 {[%clk 0:02:47]} 9. O-O {[%clk 0:02:32]}  e6 {[%clk 0:02:47]} 10. Bg5 {[%clk 0:02:31]}  Be7 {[%clk 0:02:45]} 11. Bxe7 {[%clk 0:02:31]}  Qxe7 {[%clk 0:02:46]} 12. Qe2 {[%clk 0:02:31]}  O-O {[%clk 0:02:45]} 13. Nbd2 {[%clk 0:02:29]}  a5 {[%clk 0:02:44]} 14. Ne4 {[%clk 0:02:29]}  a4 {[%clk 0:02:41]} 15. Ng3 {[%clk 0:02:27]}  Bg6 {[%clk 0:02:40]} 16. c4 {[%clk 0:02:26]}  Rab8 {[%clk 0:02:32]} 17. Rac1 {[%clk 0:02:27]}  Nd7 {[%clk 0:02:26]} 18. Rfd1 {[%clk 0:02:23]}  c5 {[%clk 0:02:21]} 19. exd6 {[%clk 0:02:05]}  cxd6 {[%clk 0:02:20]} 20. h4 {[%clk 0:02:02]}  h6 {[%clk 0:02:19]} 21. h5 {[%clk 0:02:02]}  Bh7 {[%clk 0:02:19]} 22. Rd2 {[%clk 0:01:58]}  Rb4 {[%clk 0:02:16]} 23. Rcd1 {[%clk 0:01:58]}  Nb6 {[%clk 0:02:09]} 24. dxc5 {[%clk 0:01:56]}  dxc5 {[%clk 0:02:09]} 25. Ne5 {[%clk 0:01:57]}  Qc7 {[%clk 0:02:03]} 26. Rd6 {[%clk 0:01:22]}  Qb7 {[%clk 0:01:31]} 27. R1d2 {[%clk 0:01:13]}  Bb1 {[%clk 0:01:16]} 28. Rd8 {[%clk 0:00:58]}  Rxd8 {[%clk 0:01:13]} 29. Rxd8+ {[%clk 0:00:58]}  Kh7 {[%clk 0:01:14]} 30. Rf8 {[%clk 0:00:55]}  f6 {[%clk 0:00:44]} 31. Rf7 {[%clk 0:00:35]}  Qc8 {[%clk 0:00:40]} 32. Ng6 {[%clk 0:00:17]}  Bxg6 {[%clk 0:00:37]} 33. hxg6+ {[%clk 0:00:17]}  Kh8 {[%clk 0:00:30]} 34. Nh5 {[%clk 0:00:15]}  Rxc4 {[%clk 0:00:27]} 35. Rxg7 {[%clk 0:00:14]}  Nd5 {[%clk 0:00:23]} 36. Qd2 {[%clk 0:00:10]}  Rf4 {[%clk 0:00:11]} 37. Qxf4 {[%clk 0:00:08]}  Nxf4 {[%clk 0:00:10]} 38. Rh7+ {[%clk 0:00:09]}  Kg8 {[%clk 0:00:00]} 39. Nxf6+ {[%clk 0:00:09]} 1-0


[Site "https://www.chess.com"]

[Event "Titled Tuesday Blitz October 31 Early 2023"]
[White "Yaksin, Oleg"]
[Black "Wizard_97"]
[WhiteFideId "24105880"]
[WhiteElo "2532"]
[BlackElo "2623"]
[Result "1-0"]
[Round "7"]
[TimeControl "180+1"]
[Date "2023.10.31"]
[WhiteClock "0:00:11"]
[BlackClock "0:00:20"]
[Board "61"]

1. d4 {[%clk 0:02:48]}  Nf6 {[%clk 0:02:59]} 2. c4 {[%clk 0:02:44]}  e6 {[%clk 0:02:59]} 3. g3 {[%clk 0:02:43]}  d5 {[%clk 0:02:57]} 4. Nf3 {[%clk 0:02:43]}  Be7 {[%clk 0:02:56]} 5. Bg2 {[%clk 0:02:43]}  dxc4 {[%clk 0:02:56]} 6. O-O {[%clk 0:02:43]}  O-O {[%clk 0:02:56]} 7. Qc2 {[%clk 0:02:44]}  c5 {[%clk 0:02:53]} 8. dxc5 {[%clk 0:02:37]}  Bxc5 {[%clk 0:02:53]} 9. Qxc4 {[%clk 0:02:35]}  Qe7 {[%clk 0:02:53]} 10. Bg5 {[%clk 0:02:31]}  Na6 {[%clk 0:02:52]} 11. Nc3 {[%clk 0:02:27]}  h6 {[%clk 0:02:52]} 12. Bxf6 {[%clk 0:02:23]}  Qxf6 {[%clk 0:02:53]} 13. Ne4 {[%clk 0:02:04]}  Qe7 {[%clk 0:02:52]} 14. Nxc5 {[%clk 0:02:04]}  Qxc5 {[%clk 0:02:51]} 15. Qxc5 {[%clk 0:02:04]}  Nxc5 {[%clk 0:02:52]} 16. Rac1 {[%clk 0:02:04]}  Nd7 {[%clk 0:02:49]} 17. Rc7 {[%clk 0:01:56]}  Nb6 {[%clk 0:02:48]} 18. Ne5 {[%clk 0:01:56]}  Rb8 {[%clk 0:02:48]} 19. Rd1 {[%clk 0:01:53]}  f6 {[%clk 0:02:45]} 20. Ng6 {[%clk 0:01:45]}  Re8 {[%clk 0:02:45]} 21. h4 {[%clk 0:01:44]}  Kh7 {[%clk 0:02:43]} 22. h5 {[%clk 0:01:43]}  Nd5 {[%clk 0:02:35]} 23. Bxd5 {[%clk 0:01:32]}  exd5 {[%clk 0:02:34]} 24. Rxd5 {[%clk 0:01:32]}  Bg4 {[%clk 0:02:33]} 25. Nf4 {[%clk 0:01:28]}  Re5 {[%clk 0:02:27]} 26. f3 {[%clk 0:01:13]}  Rxd5 {[%clk 0:02:23]} 27. Nxd5 {[%clk 0:01:14]}  Be6 {[%clk 0:02:14]} 28. Nxf6+ {[%clk 0:01:13]}  Kh8 {[%clk 0:02:14]} 29. Nd7 {[%clk 0:01:02]}  Rd8 {[%clk 0:02:11]} 30. Nc5 {[%clk 0:01:01]}  Bxa2 {[%clk 0:02:11]} 31. Rxb7 {[%clk 0:00:59]}  a5 {[%clk 0:02:09]} 32. e4 {[%clk 0:00:52]}  Bc4 {[%clk 0:02:00]} 33. Kf2 {[%clk 0:00:50]}  Rc8 {[%clk 0:01:39]} 34. Nd7 {[%clk 0:00:43]}  Rd8 {[%clk 0:01:38]} 35. Ne5 {[%clk 0:00:34]}  Be6 {[%clk 0:01:29]} 36. f4 {[%clk 0:00:31]}  a4 {[%clk 0:01:27]} 37. f5 {[%clk 0:00:22]}  Bb3 {[%clk 0:01:27]} 38. Ke3 {[%clk 0:00:22]}  Kg8 {[%clk 0:01:13]} 39. Ng6 {[%clk 0:00:14]}  Bf7 {[%clk 0:01:09]} 40. e5 {[%clk 0:00:14]}  Bd5 {[%clk 0:00:38]} 41. Ne7+ {[%clk 0:00:12]}  Kh7 {[%clk 0:00:38]} 42. Nxd5 {[%clk 0:00:13]}  Rxd5 {[%clk 0:00:38]} 43. Ke4 {[%clk 0:00:13]}  Rd2 {[%clk 0:00:36]} 44. e6 {[%clk 0:00:13]}  Re2+ {[%clk 0:00:35]} 45. Kd5 {[%clk 0:00:13]}  Rd2+ {[%clk 0:00:35]} 46. Ke5 {[%clk 0:00:13]}  Re2+ {[%clk 0:00:35]} 47. Kd6 {[%clk 0:00:13]}  Rd2+ {[%clk 0:00:36]} 48. Kc7 {[%clk 0:00:11]}  Rc2+ {[%clk 0:00:35]} 49. Kd8 {[%clk 0:00:11]}  Rd2+ {[%clk 0:00:35]} 50. Rd7 {[%clk 0:00:11]}  Rxb2 {[%clk 0:00:32]} 51. e7 {[%clk 0:00:11]}  Rb8+ {[%clk 0:00:24]} 52. Kc7 {[%clk 0:00:11]}  Ra8 {[%clk 0:00:22]} 53. Rd8 {[%clk 0:00:10]}  Ra7+ {[%clk 0:00:23]} 54. Kd6 {[%clk 0:00:11]}  Ra6+ {[%clk 0:00:18]} 55. Kc5 {[%clk 0:00:08]}  Ra5+ {[%clk 0:00:18]} 56. Kb4 {[%clk 0:00:07]}  Re5 {[%clk 0:00:16]} 57. e8=Q {[%clk 0:00:07]}  Rxe8 {[%clk 0:00:16]} 58. Rxe8 {[%clk 0:00:08]}  a3 {[%clk 0:00:17]} 59. Kxa3 {[%clk 0:00:08]}  g5 {[%clk 0:00:16]} 60. fxg6+ {[%clk 0:00:07]}  Kg7 {[%clk 0:00:16]} 61. Re7+ {[%clk 0:00:07]}  Kg8 {[%clk 0:00:17]} 62. Rh7 {[%clk 0:00:07]}  Kf8 {[%clk 0:00:17]} 63. Kb4 {[%clk 0:00:07]}  Kg8 {[%clk 0:00:17]} 64. Kc5 {[%clk 0:00:08]}  Kf8 {[%clk 0:00:18]} 65. Kd6 {[%clk 0:00:08]}  Kg8 {[%clk 0:00:19]} 66. Ke6 {[%clk 0:00:09]}  Kf8 {[%clk 0:00:19]} 67. Kf6 {[%clk 0:00:09]}  Ke8 {[%clk 0:00:19]} 68. Rf7 {[%clk 0:00:09]}  Kd8 {[%clk 0:00:19]} 69. g7 {[%clk 0:00:10]}  Kc8 {[%clk 0:00:20]} 70. g8=Q# {[%clk 0:00:11]} 1-0


[Site "https://www.chess.com"]

[Event "Titled Tuesday Blitz October 31 Early 2023"]
[White "MFatigue"]
[Black "Ahmad, Khagan"]
[BlackFideId "13431552"]
[WhiteElo "2495"]
[BlackElo "2622"]
[Result "1-0"]
[Round "7"]
[TimeControl "180+1"]
[Date "2023.10.31"]
[WhiteClock "0:00:18"]
[BlackClock "0:00:03"]
[Board "62"]

1. e4 {[%clk 0:02:57]}  c5 {[%clk 0:02:59]} 2. a3 {[%clk 0:02:57]}  d5 {[%clk 0:02:56]} 3. exd5 {[%clk 0:02:57]}  Qxd5 {[%clk 0:02:57]} 4. Nc3 {[%clk 0:02:57]}  Qd8 {[%clk 0:02:56]} 5. Nf3 {[%clk 0:02:58]}  Nf6 {[%clk 0:02:57]} 6. d4 {[%clk 0:02:59]}  cxd4 {[%clk 0:02:55]} 7. Qxd4 {[%clk 0:03:00]}  Bd7 {[%clk 0:02:45]} 8. Bg5 {[%clk 0:02:44]}  Nc6 {[%clk 0:02:44]} 9. Qh4 {[%clk 0:02:44]}  h6 {[%clk 0:02:35]} 10. Bd3 {[%clk 0:02:34]}  g6 {[%clk 0:02:09]} 11. Bxf6 {[%clk 0:02:30]}  exf6 {[%clk 0:02:08]} 12. O-O-O {[%clk 0:02:26]}  Bg7 {[%clk 0:02:03]} 13. Rhe1+ {[%clk 0:02:26]}  Kf8 {[%clk 0:02:02]} 14. Nd4 {[%clk 0:02:08]}  f5 {[%clk 0:01:46]} 15. Qxd8+ {[%clk 0:02:02]}  Rxd8 {[%clk 0:01:47]} 16. Nde2 {[%clk 0:01:42]}  Bxc3 {[%clk 0:00:48]} 17. Nxc3 {[%clk 0:01:42]}  Be6 {[%clk 0:00:49]} 18. Bb5 {[%clk 0:01:19]}  Nd4 {[%clk 0:00:42]} 19. Rd2 {[%clk 0:01:11]}  Ke7 {[%clk 0:00:23]} 20. Red1 {[%clk 0:01:04]}  Nxb5 {[%clk 0:00:21]} 21. Rxd8 {[%clk 0:01:00]}  Rxd8 {[%clk 0:00:19]} 22. Rxd8 {[%clk 0:00:46]}  Kxd8 {[%clk 0:00:10]} 23. Nxb5 {[%clk 0:00:46]}  a6 {[%clk 0:00:11]} 24. Nd4 {[%clk 0:00:45]}  Bd5 {[%clk 0:00:10]} 25. g3 {[%clk 0:00:45]}  Ke7 {[%clk 0:00:10]} 26. Kd2 {[%clk 0:00:45]}  Kd6 {[%clk 0:00:11]} 27. Kd3 {[%clk 0:00:44]}  Ke5 {[%clk 0:00:10]} 28. c4 {[%clk 0:00:44]}  Be4+ {[%clk 0:00:09]} 29. Ke3 {[%clk 0:00:44]}  g5 {[%clk 0:00:06]} 30. f4+ {[%clk 0:00:44]}  gxf4+ {[%clk 0:00:04]} 31. gxf4+ {[%clk 0:00:45]}  Kd6 {[%clk 0:00:05]} 32. b4 {[%clk 0:00:45]}  h5 {[%clk 0:00:02]} 33. h4 {[%clk 0:00:40]}  b6 {[%clk 0:00:02]} 34. Ne2 {[%clk 0:00:40]}  Bc2 {[%clk 0:00:01]} 35. Ng3 {[%clk 0:00:36]}  Bd1 {[%clk 0:00:01]} 36. Nxf5+ {[%clk 0:00:36]}  Ke6 {[%clk 0:00:01]} 37. Ng3 {[%clk 0:00:32]}  f5 {[%clk 0:00:01]} 38. Kd4 {[%clk 0:00:33]}  Bg4 {[%clk 0:00:02]} 39. Nf1 {[%clk 0:00:29]}  Bh3 {[%clk 0:00:01]} 40. Ne3 {[%clk 0:00:28]}  Kd6 {[%clk 0:00:02]} 41. Nc2 {[%clk 0:00:25]}  Kc6 {[%clk 0:00:02]} 42. Ke5 {[%clk 0:00:24]}  Bf1 {[%clk 0:00:01]} 43. Nd4+ {[%clk 0:00:22]}  Kd7 {[%clk 0:00:01]} 44. c5 {[%clk 0:00:22]}  bxc5 {[%clk 0:00:02]} 45. bxc5 {[%clk 0:00:23]}  Bd3 {[%clk 0:00:02]} 46. Nxf5 {[%clk 0:00:23]}  Kc6 {[%clk 0:00:03]} 47. Ng3 {[%clk 0:00:19]}  Kxc5 {[%clk 0:00:03]} 48. Nxh5 {[%clk 0:00:20]}  Kb5 {[%clk 0:00:03]} 49. f5 {[%clk 0:00:18]}  Ka4 {[%clk 0:00:03]} 50. f6 {[%clk 0:00:18]}  Bc4 {[%clk 0:00:03]} 51. Nf4 {[%clk 0:00:17]}  Kxa3 {[%clk 0:00:04]} 52. Ne6 {[%clk 0:00:17]}  Kb4 {[%clk 0:00:03]} 53. f7 {[%clk 0:00:18]} 1-0


[Site "https://www.chess.com"]